Cogmind - Beta 17 @@@ ROGUE MODE // 2026.07.22 @ 23:48:30 Player: TheSkyeDoctor Result: Destroyed by G-67 Veteran with Plasma Rifle Performance ------------- Evolutions (5) 2500 Regions Visited (11) 2200 Robots Destroyed (141) 705 Value Destroyed (5078) 5078 Prototype IDs (4) 80 Alien Tech Used (0) 0 Bonus (2036) 2036 TOTAL SCORE: 12599 Bonus ------- High Alert Combat Kills 310 Follower Combat Kills 1261 Met Warlord at Base 500 MAIN.C Attacked Warlord 500 Friendly Fire -535 Cogmind --------- Core Integrity 0/1000 Matter 300/300 Energy 99/100 System Corruption 0% Temperature Cool (0) Movement Core (50) Location -5/Warlord Parts ------- > --- POWER (2) -------- (None) > --- PROPULSION (5) --- (None) > --- UTILITY (6) ------ Advanced Signal Interpreter Advanced Targeting Computer Advanced Targeting Computer Advanced Target Analyzer Advanced Target Analyzer > --- WEAPON (4) ------- (None) > --- INVENTORY (5) ---- Energy Well (350) Matter Compressor (250) Improved Shield Generator Improved Datajack Vortex Lance Peak State ------------ > --- POWER ------------ Neutrino Core Antimatter Reactor > --- PROPULSION ------- Improved Medium Treads Heavy Treads Heavy Treads > --- UTILITY ---------- Huge Storage Unit Advanced Signal Interpreter Advanced Terrain Scanner Terrain Scan Processor Advanced Targeting Computer Improved Remote Shield > --- WEAPON ----------- Heavy Plasma Cannon Advanced Assault Cannon Heavy Linear Accelerator > --- INVENTORY -------- Backup Power III Light Antimatter Reactor Heavy Treads Carbon-fiber Leg Carbon-fiber Leg Titanium Leg Titanium Leg Titanium Leg Improved Cooling System Large Battery Matter Compressor Improved Signal Interpreter Seismic Detector Hardened Medium Armor Plating Improved Medium Armor Plating Improved Shield Generator System Restoration Module Thermic Laser Magnetic Acceleration Cannon EMP Blaster Precision Grenade Launcher Improved Datajack Power Maul Great Axe [Rating: 99] Favorites ----------- Power Heavy Ion Engine Engine Heavy Ion Engine Power Core Neutrino Core Reactor Antimatter Reactor Propulsion Light Treads Treads Light Treads Leg Titanium Leg Wheel Compact Wheel Hover Unit Backup Propulsion III Utility Huge Storage Unit Device Improved Heat Sink Storage Huge Storage Unit Processor Advanced Targeting Computer Protection Hardened Light Armor Plating Weapon Advanced Assault Cannon Energy Gun Field Laser Energy Cannon HERF Cannon Ballistic Gun Flak Gun Ballistic Cannon Advanced Assault Cannon Launcher EMP Blaster Impact Weapon Power Maul Slashing Weapon Great Axe Build | -11 -10 -9 -8 -7 -6 -6 -6 -5 -5 -5 -5 ------- Run | Yrd Mat Mat Mat Fac Fac Was Fac Fac Upp Upp War Slots Evolved 10 | . . 2 2 2 2 . . 2 . . . Power 1 | . . . . . . . . 1 . . . Propulsion 3 | . . . 2 1 . . . . . . . Utility 4 | . . . . 1 2 . . 1 . . . Weapon 2 | . . 2 . . . . . . . . . Parts Attached 106 | 7 1 8 8 22 23 3 6 2 9 16 1 Power 9 | 1 . . 1 1 . 1 1 1 1 2 . Engine 3 | 1 . . 1 . . . . 1 . . . Core 4 | . . . . 1 . . . . 1 2 . Reactor 2 | . . . . . . 1 1 . . . . Propulsion 35 | 2 . 3 3 9 10 . 3 . 2 3 . Treads 25 | 2 . 3 3 9 2 . 3 . 2 1 . Leg 8 | . . . . . 7 . . . . 1 . Wheel 2 | . . . . . 1 . . . . 1 . Hover . | . . . . . . . . . . . . Flight . | . . . . . . . . . . . . Utility 28 | 2 1 2 1 5 6 1 1 1 3 5 . Device 11 | 1 . . 1 3 3 1 . 1 1 . . Storage 5 | 1 1 1 . . 1 . . . . 1 . Processor 6 | . . . . . 1 . 1 . 1 3 . Hackware . | . . . . . . . . . . . . Protection 6 | . . 1 . 2 1 . . . 1 1 . Artifact . | . . . . . . . . . . . . Weapon 34 | 2 . 3 3 7 7 1 1 . 3 6 1 Energy Gun 9 | 1 . . 3 1 . . . . 1 3 . Energy Cannon 6 | . . 1 . 1 . . 1 . . 2 1 Ballistic Gun 4 | 1 . 1 . 1 . . . . . 1 . Ballistic Cannon 8 | . . 1 . 2 4 1 . . . . . Launcher 4 | . . . . 2 1 . . . 1 . . Special Weapon . | . . . . . . . . . . . . Impact Weapon 1 | . . . . . . . . . 1 . . Slashing Weapon 2 | . . . . . 2 . . . . . . Piercing Weapon . | . . . . . . . . . . . . Special Melee Weapon . | . . . . . . . . . . . . Unidentified Prototypes 4 | . . 1 1 2 . . . . . . . Parts Lost 69 | . . 2 4 5 25 . 1 . 7 23 2 Power 8 | . . . . 1 1 . . . 2 3 1 Propulsion 26 | . . 2 1 1 12 . 1 . 2 6 1 Utility 13 | . . . . . 6 . . . 1 6 . Weapon 22 | . . . 3 3 6 . . . 2 8 . Highest Loss Streak 17 | . . 2 3 2 15 . 1 . 5 17 2 To Critical Strikes 2 | . . . . . 1 . . . . 1 . Average Backups 16 | 1 7 12 21 24 15 16 22 22 21 15 4 Power . | . 1 1 1 . . 1 2 1 1 . . Propulsion 5 | . 4 5 8 9 3 2 5 6 5 3 . Utility 5 | . 1 3 6 7 5 5 7 8 8 7 3 Weapon 3 | . . 2 3 6 4 5 6 6 5 3 . Tool/Special . | . . . . . . . . . . . . Unused Backups 10 | . . 1 3 . . . 1 . . . 5 Power 1 | . . . 1 . . . . . . . . Propulsion . | . . . . . . . . . . . . Utility 6 | . . . 2 . . . 1 . . . 3 Weapon 2 | . . 1 . . . . . . . . 1 Tool/Special 1 | . . . . . . . . . . . 1 Average Slot Usage (%) 83 | . 100 99 99 97 86 73 75 75 82 58 76 Engine 4 | . 14 11 8 6 . . . 5 2 . 4 Core 2 | . . . . . 2 . . . 3 7 4 Reactor 1 | . . . . . . 5 6 5 3 . . Treads 17 | . 28 22 35 35 12 . 15 11 15 8 . Leg 3 | . . . . . 17 26 . . . . . Device 5 | . 14 7 3 7 8 2 6 10 10 1 . Storage 8 | . 14 11 9 7 10 13 13 11 6 4 4 Processor 9 | . . . . . 5 6 12 11 15 13 29 Protection 2 | . . 3 5 6 4 . . . . . . Energy Gun 4 | . 14 6 10 10 2 . . . 2 3 . Energy Cannon 3 | . . 4 5 . . . . 5 5 4 12 Ballistic Gun 5 | . 14 21 14 7 . . . . . . 4 Ballistic Cannon 7 | . . 10 5 10 15 10 13 11 8 3 . Slashing Weapon 1 | . . . . . 3 6 5 . 1 3 . Peak Build Rating 99 | 7 8 15 24 37 46 65 82 89 99 75 68 Average Rating 46 | 5 7 12 21 33 40 52 79 88 87 48 62 On Entrance 39 | . 7 8 14 24 32 28 65 81 89 74 55 Avg Prop Armor Cover (%) 2 | . . . . . . . . . . . 2 Naked Turns . | . . . . . . . . . . . . Heaviest Build 165 | 14 29 101 104 115 113 140 150 153 165 135 53 Greatest Support 170 | 40 40 40 80 103 111 66 160 140 170 100 16 Greatest Overweight (x) 8 | . . 2 1 1 8 2 1 1 1 7 5 Average Overweight (x) 1 | . . . 1 . . 1 . 1 . . 3 Largest Inventory Capacity 25 | 8 15 25 25 25 25 25 25 25 25 25 5 Average Capacity 20 | 7 12 16 25 25 25 25 25 25 25 20 5 Most Carried 25 | 3 9 15 25 25 23 24 25 24 25 22 5 Average Carried 16 | 1 7 12 21 24 15 19 24 23 21 15 4 Final Capacity 25 | 8 15 25 25 25 25 25 25 25 25 5 5 Final Carried 25 | 3 9 12 25 22 12 24 25 23 19 5 5 Class Distribution -------------------- 26% | Tank 22% | Gunner 16% | Scavenger-Tank 15% | Derelict-Gunner 9% | Mutant 4% | Skirmisher 3% | Scavenger-Skirmisher Dominant Class ---------------- Mutant | -10/Materials Gunner | -9/Materials Tank | -8/Materials Scavenger-Tank | -7/Factory Gunner | -6/Factory Tank | -6/Waste Tank | -6/Factory Tank | -5/Factory Tank | -5/Upper Caves Gunner | -5/Upper Caves Derelict-Gunner | -5/Warlord Resources | -11 -10 -9 -8 -7 -6 -6 -6 -5 -5 -5 -5 ----------- Run | Yrd Mat Mat Mat Fac Fac Was Fac Fac Upp Upp War Matter Collected 4215 | 278 30 409 465 781 677 164 572 . 486 348 5 Remotely . | . . . . . . . . . . . . Salvage Created 4489 | 122 211 589 809 1004 687 . 313 . 511 243 . Parts 198 | 6 4 36 40 54 22 . 16 . 16 4 . Haulers Intercepted 7 | . . 2 2 3 . . . . . . . Recyclers Shooed 2 | . . . . . 1 . 1 . . . . Parts Field Recycled . | . . . . . . . . . . . . Retrieved Matter . | . . . . . . . . . . . . Parts Self-Destructed 23 | . . . . . . . . . 13 10 . Prevented 6 | . . . . . . . . . 3 3 . Parts Restored . | . . . . . . . . . . . . Kills | -11 -10 -9 -8 -7 -6 -6 -6 -5 -5 -5 -5 ------- Run | Yrd Mat Mat Mat Fac Fac Was Fac Fac Upp Upp War Combat Hostiles Destroyed 105 | . 5 18 14 25 19 . 7 . 13 4 . Melee 5 | . . . . . 5 . . . . . . Guns 41 | . 5 11 7 10 5 . . . 1 2 . Cannons 46 | . . 7 7 13 8 . 7 . 3 1 . AOE 9 | . . . . 2 1 . . . 6 . . Classes Destroyed 14 | 2 2 5 2 2 1 . . . . . . Worker 5 | . . . 2 2 1 . . . . . . Builder 7 | . . 1 . 3 1 . 2 . . . . Tunneler 3 | 1 . . 2 . . . . . . . . Hauler 7 | . . 2 2 3 . . . . . . . Recycler 2 | 1 . . . 1 . . . . . . . Operator 2 | . . 1 . 1 . . . . . . . Watcher 8 | . 1 2 1 2 1 . 1 . . . . Swarmer 29 | . . 11 . 7 4 . 2 . 5 . . Grunt 54 | . 5 4 9 11 12 . 4 . 7 2 . Brawler 2 | . . . 1 . . . . . . 1 . Duelist 2 | . . . . . 1 . 1 . . . . Sentry 11 | . . 3 4 2 . . . . 1 1 . Hunter 1 | . . . . 1 . . . . . . . Programmer 6 | . . . . 4 2 . . . . . . Thug 2 | . . . . . . . 2 . . . . Best Kill Streak 15 | 2 3 6 8 15 6 . 3 . 10 2 . Combat Bots Only 10 | . 2 6 3 9 6 . 3 . 10 2 . Max Kills in Single Turn 4 | 1 1 2 2 4 2 . 3 . 2 1 . Gunslinging . | . . . . . . . . . . . . Exploded 2 | . . . . 1 1 . . . 2 . . Melee 1 | . . . . . 1 . . . . . . Uniques/NPCs Destroyed . | . . . . . . . . . . . . Combat | -11 -10 -9 -8 -7 -6 -6 -6 -5 -5 -5 -5 -------- Run | Yrd Mat Mat Mat Fac Fac Was Fac Fac Upp Upp War Hostile Shots Fired 969 | . 21 55 90 168 267 . 52 5 122 157 32 Missed 298 | . 8 23 28 55 76 . 21 1 30 46 10 Hits 671 | . 13 32 62 113 191 . 31 4 92 111 22 Melee 4 | . . . . . . . 1 . . 1 2 Projectile 667 | . 13 32 62 113 191 . 30 4 92 110 20 Critical Strikes 33 | . . . 6 2 14 . 1 . 3 7 . Part Disruptions 1 | . . . . 1 . . . . . . . Damage Taken 12095 | . 144 327 940 1653 3772 . 749 59 1788 2154 509 Core 1762 | . 32 28 86 139 411 . 60 15 114 526 351 Absorbed by Shields 173 | . . . . . . . 120 18 35 . . Regen/Repaired (Parts) 764 | . . . . . . 206 558 . . . . Core Remaining (%) 81 | 100 87 93 84 80 . . 44 . . . . Volleys Fired 256 | 8 20 38 51 53 34 . 16 . 20 16 . Largest 4 | 2 2 4 4 4 4 . 3 . 4 3 . Hottest 248 | 70 70 141 209 213 184 . 200 . 248 215 . Shots Fired 830 | 16 40 149 185 205 91 . 36 . 66 42 . Gun 429 | 16 40 92 124 107 18 . . . 15 17 . Cannon 386 | . . 57 61 98 69 . 36 . 42 23 . Launcher 15 | . . . . . 4 . . . 9 2 . Special . | . . . . . . . . . . . . Kinetic 493 | 8 20 111 92 128 69 . 32 . 22 11 . Thermal 322 | 8 20 38 93 77 18 . 4 . 35 29 . Explosive 7 | . . . . . 4 . . . 3 . . Electromagnetic 8 | . . . . . . . . . 6 2 . Robot Hit Streak 16 | 4 10 16 15 9 10 . 5 . 4 6 . Robot Miss Streak 13 | 2 4 6 8 13 8 . 3 . 6 2 . Penetration Max 1 | . . . . . . . 1 . . . . Secondary Targets . | . . . . . . . . . . . . Shots Hit Robots 488 | 10 27 77 113 128 63 . 23 . 29 18 . Core Hits 310 | 4 13 32 60 111 47 . 11 . 20 12 . Critical Kills 2 | . . . . . . . . . 1 1 . Critical Parts Destroyed 1 | . . 1 . . . . . . . . . Critical Strikes 25 | . 3 3 5 1 6 . 3 . 2 2 . Burn 12 | . 3 1 5 1 1 . . . 1 . . Meltdown 2 | . . . . . . . . . 1 1 . Destroy 1 | . . 1 . . . . . . . . . Blast 9 | . . 1 . . 4 . 3 . . 1 . Sever 1 | . . . . . 1 . . . . . . Melee Attacks 20 | . . . . . 14 . 5 . 1 . . Impact . | . . . . . . . . . . . . Slashing 20 | . . . . . 14 . 5 . 1 . . Piercing . | . . . . . . . . . . . . Sneak Attacks 4 | . . . . . 1 . 3 . . . . Combat Hostiles . | . . . . . . . . . . . . Follow-up Attacks . | . . . . . . . . . . . . Damage Inflicted 12884 | 102 287 1104 1703 3290 2476 . 1838 . 1408 676 . Guns 3967 | 102 287 612 1107 1269 258 . . . 144 188 . Cannons 5788 | . . 492 596 1255 1086 . 1284 . 714 361 . Explosions 2398 | . . . . 766 641 . 314 . 550 127 . Melee 731 | . . . . . 491 . 240 . . . . Ramming . | . . . . . . . . . . . . Kinetic 5988 | 38 100 762 662 1626 1086 . 1251 . 232 231 . Thermal 4277 | 64 187 342 1041 898 454 . 347 . 626 318 . Explosive 1642 | . . . . 766 445 . . . 431 . . Electromagnetic 246 | . . . . . . . . . 119 127 . Impact . | . . . . . . . . . . . . Slashing 731 | . . . . . 491 . 240 . . . . Piercing . | . . . . . . . . . . . . Highest Corruption 8 | . . . . 3 1 1 1 . . 8 8 Average Corruption 3 | . . . . 1 1 1 1 . . 8 8 Corruption Purged 2 | . . . . 2 . . . . . . . Corruption Blocked . | . . . . . . . . . . . . Effects 82 | . . . . 11 6 7 15 . . 42 1 Message Errors 20 | . . . . 5 . 1 3 . . 11 . Matter Fused 24 | . . . . 2 4 4 6 . . 8 . Heat Flow Errors 10 | . . . . . 1 . 3 . . 6 . Energy Discharges 6 | . . . . . . . 2 . . 4 . Parts Fused 2 | . . . . . . . . . . 2 . Data Loss (minor) 10 | . . . . 2 1 1 . . . 6 . Data Loss (major) 5 | . . . . 1 . . 1 . . 2 1 Misfires 2 | . . . . . . . . . . 2 . Alerts 3 | . . . . 1 . 1 . . . 1 . Overload Shots . | . . . . . . . . . . . . Overflow Damage 503 | . . . 1 143 104 . 242 . 13 . . Projectiles 163 | . . . 1 25 51 . 80 . 6 . . Explosions 234 | . . . . 118 53 . 56 . 7 . . Melee 106 | . . . . . . . 106 . . . . Knockbacks 54 | . . 2 2 29 15 . 4 . 1 1 . Impact . | . . . . . . . . . . . . Kinetic 51 | . . 2 2 27 14 . 4 . 1 1 . Secondary 3 | . . . . 2 1 . . . . . . Self-Inflicted Damage 495 | . . . 73 110 224 . 88 . . . . Shots 7 | . . . 1 2 3 . 1 . . . . Rammed . | . . . . . . . . . . . . Targets Rammed . | . . . . . . . . . . . . Kicked . | . . . . . . . . . . . . Crushed . | . . . . . . . . . . . . Highest Temperature 659 | 60 124 659 602 384 175 . 205 . 390 616 . Average Temperature 137 | 25 46 195 183 113 49 . 71 . 180 144 . Received Heat Transfer 4115 | . 78 42 531 273 1396 . 126 26 472 1075 96 Effects 52 | . . 25 15 2 . . . . 2 8 . Shutdowns 9 | . . 6 1 . . . . . 1 1 . Energy Bleed 7 | . . 4 1 . . . . . . 2 . Interference 12 | . . 5 7 . . . . . . . . Matter Decay 7 | . . 3 2 . . . . . 1 1 . Short Circuit 3 | . . . . 2 . . . . . 1 . Damage (minor) 6 | . . 4 2 . . . . . . . . Damage (major) 8 | . . 3 2 . . . . . . 3 . Siege Activations . | . . . . . . . . . . . . Martial Activations . | . . . . . . . . . . . . Shielding Activations . | . . . . . . . . . . . . Robots Disrupted . | . . . . . . . . . . . . Combat Hostiles . | . . . . . . . . . . . . Robots Corrupted . | . . . . . . . . . . . . Combat Hostiles . | . . . . . . . . . . . . Parts Fried . | . . . . . . . . . . . . Impact Corruptions . | . . . . . . . . . . . . Robots Melted 4 | . . . . . . . . . 3 1 . Combat Hostiles 4 | . . . . . . . . . 3 1 . Parts Melted 19 | . 5 1 7 . . . 1 . 3 2 . Heat Transferred 8921 | 185 777 851 2343 1951 729 . 237 . 1250 598 . Parts Sabotaged 7 | . . . . . . . . . . . 7 Parts Stolen . | . . . . . . . . . . . . Parts Stripped . | . . . . . . . . . . . . Power Chain Reactions . | . . . . . . . . . . . . Alert | -11 -10 -9 -8 -7 -6 -6 -6 -5 -5 -5 -5 ------- Run | Yrd Mat Mat Mat Fac Fac Was Fac Fac Upp Upp War Maximum Alert Level 5 | . . 1 . 2 1 . 5 3 . . . Low Security (%) 72 | 100 100 96 100 46 94 100 41 . . . . Level 1 14 | . . 3 . 40 5 . 15 . . . . Level 2 3 | . . . . 13 . . 2 . . . . Level 3 4 | . . . . . . . 11 100 . . . Level 4 2 | . . . . . . . 14 . . . . Level 5 2 | . . . . . . . 14 . . . . High Security . | . . . . . . . . . . . . Max Security . | . . . . . . . . . . . . Peak Influence 1768 | 5 55 206 131 495 238 11 1768 860 . . . Initial 860 | . . . 74 45 238 11 . 860 . . . Average 209 | . 19 73 51 214 95 . 622 812 . . . Influence Increases 5516 | 10 201 556 481 903 563 . 2222 . 280 300 . Destroy 0b10 Robot/C 2740 | . 100 360 280 500 380 . 780 . 260 80 . Destroy 0b10 Robot/NC 215 | 10 5 30 35 60 15 . 60 . . . . Destroy Leader 574 | . 22 88 66 128 62 . 178 . 20 10 . Allied During Kill 523 | . . . . . . . 523 . . . . Successful Hack 64 | . 14 16 . 34 . . . . . . . Disable Machine 555 | . . 45 45 75 45 . 345 . . . . Anti-Garrison Action 150 | . . . . . . . 150 . . . . Destroy Structure 305 | . . 2 25 46 61 . 171 . . . . Partial Spotted 15 | . . . 15 . . . . . . . . Lose Combat Pursuer 375 | . 60 15 15 60 . . 15 . . 210 . Influence Decreases 5516 | 10 198 383 557 516 1017 33 466 996 686 508 146 Entered New Map 1823 | . . 3 102 55 249 22 . 896 282 68 146 Time Decay 3133 | 10 198 360 415 421 518 11 386 100 334 380 . Lost Part 490 | . . 20 40 40 250 . 10 . 70 60 . Lost Ally 70 | . . . . . . . 70 . . . . Squads Dispatched 28 | . 2 2 1 7 4 . 11 1 . . . Investigation 3 | . 1 1 . . . . . 1 . . . Extermination 8 | . . . . 4 2 . 2 . . . . Reinforcement 12 | . 1 1 1 3 1 . 5 . . . . Assault 3 | . . . . . . . 3 . . . . Garrison 2 | . . . . . 1 . 1 . . . . Intercept . | . . . . . . . . . . . . Searches Triggered . | . . . . . . . . . . . . Construction Impeded 4 | . . . . 1 1 . 2 . . . . Haulers Reinforced 2 | . . . . 1 . . 1 . . . . Active Scanning Responses . | . . . . . . . . . . . . Cargo Convoy Interrupts . | . . . . . . . . . . . . Stealth | -11 -10 -9 -8 -7 -6 -6 -6 -5 -5 -5 -5 --------- Run | Yrd Mat Mat Mat Fac Fac Was Fac Fac Upp Upp War Distress Signals 9 | . 1 . 2 . . . 5 . . . 1 Communications Jammed . | . . . . . . . . . . . . Distress Signals . | . . . . . . . . . . . . Times Spotted 214 | . 12 24 29 39 26 1 33 3 14 17 16 Peak Tracking Total 15 | . 3 7 5 7 8 1 5 3 11 5 15 Tactical Retreats 11 | . 3 1 1 2 . . 1 . . 3 . Traps | -11 -10 -9 -8 -7 -6 -6 -6 -5 -5 -5 -5 ------- Run | Yrd Mat Mat Mat Fac Fac Was Fac Fac Upp Upp War Traps Triggered 5 | . . 1 . 2 1 . 1 . . . . Indirectly . | . . . . . . . . . . . . Trap Hack Attempts . | . . . . . . . . . . . . Triggered . | . . . . . . . . . . . . Disarmed . | . . . . . . . . . . . . Reprogrammed . | . . . . . . . . . . . . Reused . | . . . . . . . . . . . . Traps Extracted . | . . . . . . . . . . . . Installed . | . . . . . . . . . . . . Triggered . | . . . . . . . . . . . . Machines | -11 -10 -9 -8 -7 -6 -6 -6 -5 -5 -5 -5 ---------- Run | Yrd Mat Mat Mat Fac Fac Was Fac Fac Upp Upp War Machines Disabled 42 | . . 3 3 5 3 . 24 . 4 . . Max in Single Turn 3 | . . 1 2 2 2 . 3 . 2 . . Garrison Access 3 | . . . 1 . . . 2 . . . . Machines Repaired . | . . . . . . . . . . . . Machines Dismantled . | . . . . . . . . . . . . Machines Sabotaged . | . . . . . . . . . . . . Overloaded Fab Kills . | . . . . . . . . . . . . Hacking | -11 -10 -9 -8 -7 -6 -6 -6 -5 -5 -5 -5 --------- Run | Yrd Mat Mat Mat Fac Fac Was Fac Fac Upp Upp War Machines Accessed 28 | . 3 6 4 5 1 . 5 1 . 1 2 Terminals 19 | . 3 6 2 4 . . 4 . . . . Fabricators . | . . . . . . . . . . . . Repair Stations . | . . . . . . . . . . . . Recycling Units . | . . . . . . . . . . . . Scanalyzers 2 | . . . 1 1 . . . . . . . Garrison Access 4 | . . . 1 . 1 . 1 1 . . . Total Hacks 56 | . 7 12 6 11 1 . 12 3 . 1 3 Successful 21 | . 2 5 4 4 . . 2 . . 1 3 Failed 35 | . 5 7 2 7 1 . 10 3 . . . Catastrophic 5 | . . . . . 1 . 3 1 . . . Database Lockouts . | . . . . . . . . . . . . Manual 34 | . 7 10 1 9 . . 7 . . . . Terminals 41 | . 7 12 3 9 . . 10 . . . . Fabricators . | . . . . . . . . . . . . Repair Stations . | . . . . . . . . . . . . Recycling Units . | . . . . . . . . . . . . Scanalyzers 4 | . . . 2 2 . . . . . . . Garrison Access 7 | . . . 1 . 1 . 2 3 . . . Terminal Hacks 7 | . . 1 1 . . . 1 . . 1 3 Record 2 | . . . . . . . . . . . 2 Open Door 2 | . . . . . . . . . . 1 1 Open DSF 1 | . . . . . . . 1 . . . . Branch Access Points 1 | . . 1 . . . . . . . . . Locate Traps 1 | . . . 1 . . . . . . . . Fabricator Hacks . | . . . . . . . . . . . . Repair Station Hacks . | . . . . . . . . . . . . Recycling Unit Hacks . | . . . . . . . . . . . . Scanalyzer 2 | . . . 1 1 . . . . . . . Retrieve Study 2 | . . . 1 1 . . . . . . . Garrison Access Hacks 2 | . . . 1 . . . 1 . . . . Seal Access 2 | . . . 1 . . . 1 . . . . Unauthorized Hacks 10 | . 2 4 1 3 . . . . . . . Terminals 10 | . 2 4 1 3 . . . . . . . Botnet 10 | . 2 4 1 3 . . . . . . . Fabricators . | . . . . . . . . . . . . Repair Stations . | . . . . . . . . . . . . Recycling Units . | . . . . . . . . . . . . Scanalyzers . | . . . . . . . . . . . . Garrison Access . | . . . . . . . . . . . . Data Cores Recovered . | . . . . . . . . . . . . Used . | . . . . . . . . . . . . Hacking Detections 18 | . 3 3 2 5 1 . 3 1 . . . Full Trace Events 2 | . 1 . . . . . . 1 . . . Feedback Events . | . . . . . . . . . . . . Feedback Blocked . | . . . . . . . . . . . . Robot Schematics Acquired . | . . . . . . . . . . . . Robots Built . | . . . . . . . . . . . . Authchips . | . . . . . . . . . . . . Time . | . . . . . . . . . . . . Total Robot Build Rating . | . . . . . . . . . . . . Part Schematics Acquired . | . . . . . . . . . . . . Parts Built . | . . . . . . . . . . . . Authchips . | . . . . . . . . . . . . Time . | . . . . . . . . . . . . Total Part Build Rating . | . . . . . . . . . . . . Part Studies Acquired 2 | . . . 1 1 . . . . . . . Parts Repaired . | . . . . . . . . . . . . Time . | . . . . . . . . . . . . Parts Recycled . | . . . . . . . . . . . . Recycled Matter . | . . . . . . . . . . . . Retrieved Matter . | . . . . . . . . . . . . Retrieved Components . | . . . . . . . . . . . . Parts Scanalyzed . | . . . . . . . . . . . . Part Schematics Acquired . | . . . . . . . . . . . . Parts Damaged . | . . . . . . . . . . . . Bothacking | -11 -10 -9 -8 -7 -6 -6 -6 -5 -5 -5 -5 ------------ Run | Yrd Mat Mat Mat Fac Fac Was Fac Fac Upp Upp War Used RIF Installer . | . . . . . . . . . . . . Robots Hacked . | . . . . . . . . . . . . Non-combat . | . . . . . . . . . . . . Combat . | . . . . . . . . . . . . Robot Hacks Applied . | . . . . . . . . . . . . Relay Couplers Released 2 | . . . . . . . 2 . . . . Machine Destruction 2 | . . . . . . . 2 . . . . Fabnet Peak Effective % . | . . . . . . . . . . . . Robots Rewired . | . . . . . . . . . . . . Allies Hacked 1 | . . . . . . . 1 . . . . Hacks Repelled . | . . . . . . . . . . . . Allies | -11 -10 -9 -8 -7 -6 -6 -6 -5 -5 -5 -5 -------- Run | Yrd Mat Mat Mat Fac Fac Was Fac Fac Upp Upp War Total Allies 20 | . . . . . . 20 . . . . . Largest Group 20 | . . . . . . 20 19 . . . . Highest-Rated Group 686 | . . . . . . 686 661 . . . . Highest-Rated Ally 50 | . . . . . . 50 50 . . . . Total Orders . | . . . . . . . . . . . . Ally Attacks 156 | . . . . . . 22 134 . . . . Total Damage 7196 | . . . . . . 429 6767 . . . . Kills 45 | . . . . . . 1 44 . . . . Allies Corrupted . | . . . . . . . . . . . . Allies Melted 1 | . . . . . . . . . . . 1 Intel | -11 -10 -9 -8 -7 -6 -6 -6 -5 -5 -5 -5 ------- Run | Yrd Mat Mat Mat Fac Fac Was Fac Fac Upp Upp War Active Infowar (turns) 2869 | 17 500 700 . . 533 . . 208 679 232 . Terrain 1639 | . . . . . 533 . . 208 679 219 . Seismic 1230 | 17 500 700 . . . . . . . 13 . Robot Analysis Total . | . . . . . . . . . . . . Derelict Logs Recovered 4 | . . . . . . . . . 3 1 . Drone Launches . | . . . . . . . . . . . . Drone Recoveries . | . . . . . . . . . . . . Exploration | -11 -10 -9 -8 -7 -6 -6 -6 -5 -5 -5 -5 ------------- Run | Yrd Mat Mat Mat Fac Fac Was Fac Fac Upp Upp War Turns Passed 12920 | 131 500 1000 1121 2284 1430 536 1377 209 758 1598 1976 Spaces Moved 5641 | 63 243 450 405 949 538 231 707 87 366 866 736 Core 305 | 4 . . . . . . . . . 287 14 Treads 3968 | 59 243 450 405 949 279 . 707 87 366 423 . Legs 497 | . . . . . 257 231 . . . 9 . Wheels 596 | . . . . . 2 . . . . 147 447 Hover 275 | . . . . . . . . . . . 275 Flight . | . . . . . . . . . . . . Fastest Speed 50 | 50 160 160 200 160 160 197 160 240 160 50 50 Average Speed 200 | 153 160 184 222 205 190 227 180 240 180 170 267 Slowest Speed 610 | 160 160 320 240 210 270 267 240 240 240 610 485 Overloaded Moves . | . . . . . . . . . . . . Propulsion Burnouts . | . . . . . . . . . . . . Robots Hopped . | . . . . . . . . . . . . Potential Cave-ins . | . . . . . . . . . . . . Cave-ins Triggered . | . . . . . . . . . . . . Exploration Rate (%) 39 | 4 29 37 37 24 11 88 22 3 60 73 84 Regions Visited 11 Branch Regions 3 Pre-discovered Areas 2 | . . . . . . . . . 2 . . Known Exits Taken 4 | . . . . . . . 1 1 1 1 . Unknown Exits Taken 5 | 1 1 1 1 1 . . . . . . . Scrap Searched 4 | . . . . . . . . . 1 3 . Spaces Dug 1 | . . . . . 1 . . . . . . Terrain Destroyed 208 | . . . 29 52 65 . 23 . 29 10 . Melee 1 | . . . . . 1 . . . . . . Projectile 48 | . . . . 7 9 . 7 . 15 10 . AOE 159 | . . . 29 45 55 . 16 . 14 . . Terrain Rammed . | . . . . . . . . . . . . Walls Destroyed . | . . . . . . . . . . . . Machines Disabled . | . . . . . . . . . . . . Actions | -11 -10 -9 -8 -7 -6 -6 -6 -5 -5 -5 -5 --------- Run | Yrd Mat Mat Mat Fac Fac Was Fac Fac Upp Upp War Total 6644 | 80 319 534 513 1156 850 241 759 88 408 955 741 Wait 486 | . 49 26 18 103 231 3 14 . 3 39 . Move 5631 | 62 242 449 404 948 538 230 706 86 365 865 736 Hop . | . . . . . . . . . . . . Pick Up 70 | 3 6 9 22 8 5 5 6 . 3 2 1 Fast Attach 38 | 7 . 1 1 6 6 2 2 . 1 11 1 Attach 59 | . . 3 7 6 18 . 2 2 7 14 . Detach 13 | . . . 2 2 2 . 4 . . 2 1 Swap 34 | . 1 4 3 12 2 1 2 . 8 1 . Drop 35 | . 1 4 5 16 . . 2 . . 5 2 Fire 256 | 8 20 38 51 53 34 . 16 . 20 16 . Melee 20 | . . . . . 14 . 5 . 1 . . Ram . | . . . . . . . . . . . . Kick . | . . . . . . . . . . . . Crush . | . . . . . . . . . . . . Escape Stasis 2 | . . . . 2 . . . . . . . Rewire . | . . . . . . . . . . . . Trap . | . . . . . . . . . . . . Miscellaneous . | . . . . . . . . . . . . Route ------- -11/Scrapyard -10/Materials -9/Materials (discovered 3 exits: *Mat / Min x2) -8/Materials -7/Factory -6/Factory -6/Waste -6/Factory -5/Factory -5/Upper Caves -5/Upper Caves (discovered 2 exits: Fac / *War) -5/Warlord History --------- Turn | Location | Event 7 | -11/Scrapyard | Discovered new exit (range 13) 132 | -11/Scrapyard | Entered Materials 322 | -10/Materials | Build established: Mutant 599 | -10/Materials | Discovered new exit (range 16) 632 | -10/Materials | Entered another Materials area 632 | -9/Materials | Evolved 2 slots: Weapon x2 951 | -9/Materials | Build established: Gunner 1141 | -9/Materials | Identified exit to Mines 1549 | -9/Materials | Discovered new exit (range 16) 1631 | -9/Materials | Build established: Tank 1632 | -9/Materials | Entered another Materials area 1632 | -8/Materials | Evolved 2 slots: Propulsion x2 2377 | -8/Materials | Lost 3 parts (3w) 2611 | -8/Materials | Build established: Gunner 2735 | -8/Materials | Discovered new exit (range 8) 2753 | -8/Materials | Entered Factory 2753 | -7/Factory | Evolved 2 slots: Propulsion x1, Utility x1 3054 | -7/Factory | Build established: Tank 3666 | -7/Factory | Build established: Scavenger-Tank 3854 | -7/Factory | Destroyed 9 combat bots 4882 | -7/Factory | Discovered new exit (range 10) 5037 | -7/Factory | Entered another Factory area 5037 | -6/Factory | Evolved 2 slots: Utility x2 5348 | -6/Factory | Build established: Scavenger-Skirmisher 5471 | -6/Factory | Garrison activated, responded to threat 5621 | -6/Factory | Lost 15 parts (1p9n3u2w) 5676 | -6/Factory | Lost 3 parts (1n1u1w) 5994 | -6/Factory | Build established: Gunner 6467 | -6/Factory | Sucked down chute 6467 | -6/Factory | Entered Waste 6468 | -6/Waste | Joined by Warlord forces that had cleared the area 6495 | -6/Waste | Lost 5 parts (1n2u2w) 6570 | -6/Waste | Found Damper Plating 6790 | -6/Waste | Discovered new exit (range 13) 6887 | -6/Waste | A Compactor rumbled back to life 6888 | -6/Waste | Spotted C-40 Crusher 6891 | -6/Waste | Allies destroyed C-40 Crusher 7003 | -6/Waste | Entered Factory 7003 | -6/Factory | Accompanied by 19 allies 7028 | -6/Factory | Build established: Tank 7256 | -6/Factory | Spotted B-75 Beast 7261 | -6/Factory | Allies destroyed B-75 Beast 7535 | -6/Factory | Core integrity fell below 50% 7565 | -6/Factory | Lost 10 allies 7957 | -6/Factory | Garrison activated, responded to threat 7968 | -6/Factory | Allied Derelicts emerged from ambush trap array 8029 | -6/Factory | Build established: Scavenger-Tank 8053 | -6/Factory | First assault squad dispatched 8145 | -6/Factory | Lost 3 allies 8254 | -6/Factory | P-60 Hacker assimilated allied US-36R(g) 8321 | -6/Factory | Lost 3 allies 8364 | -6/Factory | Discovered new exit (range 6) 8378 | -6/Factory | Identified exit to Factory 8380 | -6/Factory | Entered another Factory area 8380 | -5/Factory | Evolved 2 slots: Power x1, Utility x1 8542 | -5/Factory | Discovered new exit (range 13) 8586 | -5/Factory | Identified exit to Upper Caves 8589 | -5/Factory | Entered Upper Caves 8592 | -5/Upper Caves | Build established: Tank 8731 | -5/Upper Caves | Found DCF Scrap (13 items) 8969 | -5/Upper Caves | Attracted the attention of an 0b10 base 9043 | -5/Upper Caves | Destroyed 10 combat bots 9046 | -5/Upper Caves | Lost 5 parts (1p1n1u2w) 9235 | -5/Upper Caves | Learned location of Armory (-4) 9240 | -5/Upper Caves | Learned 8 Factory zone layouts 9301 | -5/Upper Caves | Discovered new exit (range 14) 9342 | -5/Upper Caves | Identified exit to Upper Caves 9345 | -5/Upper Caves | Build established: Skirmisher 9347 | -5/Upper Caves | Entered another Upper Caves area 9349 | -5/Upper Caves | Attracted the attention of an 0b10 checkpoint 9607 | -5/Upper Caves | Lost 6 parts (1p3u2w) 9865 | -5/Upper Caves | Build established: Gunner 9951 | -5/Upper Caves | Encountered a Warlord checkpoint 10601 | -5/Upper Caves | Core integrity fell below 50% 10631 | -5/Upper Caves | Lost 17 parts (2p6n3u6w) 10891 | -5/Upper Caves | Discovered new exit (range 16) 10928 | -5/Upper Caves | Identified exit to Factory 10944 | -5/Upper Caves | Identified exit to Warlord 10945 | -5/Upper Caves | Entered Warlord 10994 | -5/Warlord | System corruption cleaned by Quarantine Array 11173 | -5/Warlord | Build established: Derelict-Gunner 12245 | -5/Warlord | Warlord's base attacked by MAIN.C 12444 | -5/Warlord | Met Warlord 12595 | -5/Warlord | Warlord forces counterattacked 12813 | -5/Warlord | Found Prototype Piercing Weapon 12910 | -5/Warlord | Spotted Striker 12911 | -5/Warlord | Spotted Striker 12916 | -5/Warlord | Core integrity fell below 20% 12920 | -5/Warlord | Warlord base infiltrated, sounded retreat 12921 | -5/Warlord | Destroyed by G-67 Veteran with Plasma Rifle Last Messages --------------- 12911_ Backup Power III blown off. 12911_ Backup Power III disintegrated. 12911_ Hvy. Phase Cannon blown off. 12911_ E-15 Imp destroyed. 12911_ Acquired 4 matter. 12913_ Flak Gun blown off. 12913_ Fission Core blown off. 12913_ Com. Wheel blown off. 12913_ E-15 Imp destroyed. 12913_ Backup Propulsion III destroyed. 12913_ Knocked back. 12913_ Dropped Imp. Signal Interpreter. 12914_ 8O-3FQ(c) suffers critical hit (Blast). 12914_ 8O-3FQ(c) destroyed. 12916_ Acquired 1 matter. 12916_ Knocked back. 12918_ Slug penetrates Wall. 12920_ ANNOUNCEMENT: Base interior infiltrated, regroup at designated outer cave rendezvous points. Map ----- +----------------------------------------------------+ | | | | | ?????????????????????????????????????????????????? | | ?????????????????????????????????????????????????? | | ?????????????????????????????????????????????????? | | ????????????######???????????????????????????????? | | ????######### ################X#??????????????? | | ???# #^ ^ ^ "??????????????? | | ???# """ # "??????????????? | | ???# """ #^ #########??????????????? | | ???# """ # """"" #??????????????????????? | | ???# # """"" #??????????????????????? | | ???# """ + ^"""""^ #??????????????????????? | | ???# """ # ######?????????????????? | | ???# """ # ^ #?????????????????? | | ???# # ^ """" #?????????????????? | | ???####+##### """""" #?????????????????? | | ????# #### " "" " #?????????????????? | | ##??# #?????????????????? | | #??# % #?????????????????? | | #??# ########## #?????????????????? | | #??# ####????????# #?????????????????? | | #??# #???????????# #?????????????????? | | #??# #???????????# ######?????????????????? | | #??# #???????????# #???????????????????? ? | | #### #???????????# @#???????????????????? | | # ##??????????# #????????????????????? | | # #??????????# #?????????????????????? | | + #########???## ##?????????????????????? | | # #"""""""#???# #??""?????????????????? | | # #"""""""#???## ##?#""#????????????????? | | ## #""%" ""#???## #??#""#????????????????? | | ?# #"""%"""#?###; ;#### ""#####????????????? | | ?# #"" = ""###= s* = "" "############?? | | ?# ### "## "%= =!%=!%%!"" """"""""""""#?? | | # ##### # #!% gg%%%!=!%="! """"""""""""#?# | | # % /=gg!%%[%]%!=[ ### | | / %* %gi%*=![!%=%%* + | | # !/[= ! !%h%%*%%%]%%%% ^+ | | # =%=%= %=!=%*!%*!%[=% ### | | # #### ]]]/! # [[!%!![""[ """"""""""""#?? | | ##/#### % # !% [!%= %"" """"""""""""#?? | | + %# = !%!* "" "############?? | | # # #"#####""#####????????????? | | # ##???#""#????????????????? | | ### ##????#""#????????????????? | | #?# #??????""?????????????????? | | #+#####?# """"" ##???????????????????????? | | ^ ##### """"" #???????????????????????# | | """"" ##??????????????????????# | +----------------------------------------------------+ Best States ------------- Heat Dissipation 67 Energy Generation 35 Energy Capacity 740 Matter Stores 300 Matter Capacity 300 Sight Range 16 Terrain Scan Range 20 Terrain Scan Density 85 Armor Coverage 225 Evasion (%) 50 Targeting Accuracy 16 Target Analysis 12 Recoil Reduction 5 Kinecelleration 30 Item Schematics ----------------- None Robot Schematics ------------------ None Fabricated ------------ Nothing Repaired ---------- Nothing Studied --------- Lgt. Treads | -8/Materials | Hacked Imp. Treads | -7/Factory | Hacked Alien Tech Used ----------------- None Achievements -------------- None Challenges ------------ None Game ------ Seed FusionClaymoresDoomcannon Manual? 0 Play Time 00:58:18 Cumulative 137.7 hours Start 2026.07.22 @ 20:11:20 End 2026.07.22 @ 23:48:30 Sessions 1 Manual Loads 0 Difficulty Rogue Special Mode None Game No. 283 Rogue 283 Adventurer 0 Explorer 0 Win Type - Total 1 Types 1/0/0/0/0/0/0/0/0/0 Lore% 55 Gallery% 55 Achievement% 43 Wizard Run 0 Options --------- Layout 2 ASCII 0 Keyboard 1 Movement Arrows Keybinds 0 Fullscreen 1 Font 24/Smallcaps Map View 50x44 Zoom Use 0% Tactical HUD 1 Map Filters NONE Filters NONE Steam 1 RUN: 6fec077a-2f50-4f6e-9067-52228d87cc99